Department Family,Entity,Pay date,Expense Type(T),Expense Area(T),Supplier(T),Transaction Number,Amount,Description
NS&I,NS&I,20/06/2023,Unitary fee - Outsource partner,Commercial and Legal,Atos IT Services UK Ltd,4023710,"5,671,960.45",Unitary service charge - June 2023
NS&I,NS&I,28/06/2023,Demand-linked costs - Outsource partner,Delivery & Monitoring,Atos IT Services UK Ltd,4023778,"3,423,539.00",Demand link service charge - June 2023
NS&I,NS&I,28/06/2023,Demand-linked costs - Outsource partner,Delivery & Monitoring,Atos IT Services UK Ltd,4023728,"3,394,526.00",Demand link service charge - May 2023
NS&I,NS&I,28/06/2023,Unitary fee - Outsource partner,B2B Government Payment Services,Atos IT Services UK Ltd,4023810,"1,722,249.49",Tax-free childcare service charges - June 2023
NS&I,NS&I,28/06/2023,Unitary fee - Outsource partner,B2B Government Payment Services,Atos IT Services UK Ltd,4023748,"1,326,178.97",Tax-free childcare service charges - May 2023
NS&I,NS&I,01/06/2023,Unitary fee - Outsource partner,B2B Government Payment Services,Atos IT Services UK Ltd,4023592,"691,983.05",Help to save service charges - May 2023
NS&I,NS&I,28/06/2023,Unitary fee - Outsource partner,B2B Government Payment Services,Atos IT Services UK Ltd,4023770,"576,652.54",Help to save service charges - May 2023
NS&I,NS&I,28/06/2023,Unitary fee - Outsource partner,B2B Government Payment Services,Atos IT Services UK Ltd,4023808,"576,652.54",Help to save service charges - June 2023
NS&I,NS&I,01/06/2023,Capital suspense account,Rainbow,IBM United Kingdom Ltd,4023580,"449,641.74",IT integration platform delivery
NS&I,NS&I,28/06/2023,Unitary fee - Outsource partner,B2B Government Payment Services,Atos IT Services UK Ltd,4023801,"355,010.83",30 Hours service charges - May 2023
NS&I,NS&I,28/06/2023,Unitary fee - Outsource partner,B2B Government Payment Services,Atos IT Services UK Ltd,4023617,"414,061.48",Help to save service charges - April 2023
NS&I,NS&I,28/06/2023,Unitary fee - Outsource partner,B2B Government Payment Services,Atos IT Services UK Ltd,4023776,"345,051.23",Help to save service charges - April 2023
NS&I,NS&I,28/06/2023,Unitary fee - Outsource partner,B2B Government Payment Services,Atos IT Services UK Ltd,4023618,"407,324.28",Tax-free childcare service charges - April 2023
NS&I,NS&I,28/06/2023,Unitary fee - Outsource partner,B2B Government Payment Services,Atos IT Services UK Ltd,4023799,"339,436.90",Tax-free childcare service charges - April 2023
NS&I,NS&I,28/06/2023,Unitary fee - Outsource partner,B2B Government Payment Services,Atos IT Services UK Ltd,4023771,"273,329.56",30 Hours service charges - May 2023
NS&I,NS&I,28/06/2023,Unitary fee - Outsource partner,B2B Government Payment Services,Atos IT Services UK Ltd,4023809,"310,957.52",Help to buy service charges June 2023
NS&I,NS&I,20/06/2023,Professional services - Other,Rainbow,Actica Consulting Ltd,4023717,"244,430.64",Strategic Business Design Support
NS&I,NS&I,28/06/2023,Rentals under operating leases,Workplace & Culture,Durham County Council - City of Durham,4023763,"229,982.70",Quarterly Rent for Regional Office Q2 2023
NS&I,NS&I,20/06/2023,Professional services - Projects,Programme Delivery,Ecospend Technologies Ltd,4023691,"225,480.00",Payment channel enhancements
NS&I,NS&I,29/06/2023,Project costs - Outsource partner,Programme Delivery,Atos IT Services UK Ltd,4023698,"210,000.00",Data maintenance work
NS&I,NS&I,29/06/2023,Professional services - Other,Rainbow,Actica Consulting Ltd,4023813,"195,376.89",Strategic Business Design Support
NS&I,NS&I,28/06/2023,Professional services - Legal,Rainbow,Bevan Brittan LLP,4023746,"180,000.00",Legal Services May 2023
NS&I,NS&I,14/06/2023,Maintenance and running costs - Outsource partner,Information & Technology,Atos IT Services UK Ltd,4023685,"166,234.00",Corporate IT licences
NS&I,NS&I,28/06/2023,Unitary fee - Outsource partner,B2B Government Payment Services,Atos IT Services UK Ltd,4023767,"196,178.02",Court Funds Office Service Charges May 2023
NS&I,NS&I,28/06/2023,Unitary fee - Outsource partner,B2B Government Payment Services,Atos IT Services UK Ltd,4023768,"163,481.68",Court Funds Office Service Charges May 2023
NS&I,NS&I,07/06/2023,Professional services - Other,Rainbow,Capgemini UK plc (SIAM Partner),4023620,"144,586.80",Service Integration and Management  Partner support 
NS&I,NS&I,14/06/2023,Professional services - Other,Rainbow,Capgemini UK plc (SIAM Partner),4023622,"115,967.68",Service Integration and Management  Partner support 
NS&I,NS&I,07/06/2023,Project costs - Outsource partner,Programme Delivery,Atos IT Services UK Ltd,4023614,"113,288.00",Service change costs
NS&I,NS&I,01/06/2023,Project costs - Outsource partner,Programme Delivery,Atos IT Services UK Ltd,4023581,"107,018.00",Customer journey improvements
NS&I,NS&I,28/06/2023,Project costs - Outsource partner,Programme Delivery,Atos IT Services UK Ltd,4023785,"100,997.00",Service change costs
NS&I,NS&I,01/06/2023,Maintenance and running costs - Outsource partner,Change Delivery,Atos IT Services UK Ltd,4023582,"100,000.00",Programme management cost April 2023
NS&I,NS&I,14/06/2023,Maintenance and running costs - Outsource partner,Change Delivery,Atos IT Services UK Ltd,4023631,"100,000.00",Programme management cost May 2023
NS&I,NS&I,07/06/2023,Maintenance and running costs - Outsource partner,Business Insight,Atos IT Services UK Ltd,4023619,"99,675.00",Data warehouse development work
NS&I,NS&I,14/06/2023,Maintenance and running costs - Outsource partner,Business Insight,Atos IT Services UK Ltd,4023623,"99,675.00",Data warehouse development work
NS&I,NS&I,28/06/2023,Unitary fee - Outsource partner,B2B Government Payment Services,Atos IT Services UK Ltd,4023595,"112,694.41",Tax-free childcare service charges - April 2023
NS&I,NS&I,28/06/2023,Unitary fee - Outsource partner,B2B Government Payment Services,Atos IT Services UK Ltd,4023599,"112,694.41",30 Hours service charges - April 2023
NS&I,NS&I,28/06/2023,Unitary fee - Outsource partner,B2B Government Payment Services,Atos IT Services UK Ltd,4023772,"93,912.01",30 Hours service charges - April 2023
NS&I,NS&I,28/06/2023,Unitary fee - Outsource partner,B2B Government Payment Services,Atos IT Services UK Ltd,4023775,"93,912.01",Tax-free childcare service charges - April 2023
NS&I,NS&I,29/06/2023,Project costs - Outsource partner,Programme Delivery,Atos IT Services UK Ltd,4023714,"93,170.00",Product enhancement
NS&I,NS&I,14/06/2023,Product account bank charges,Finance,HMRC (Government Banking Service),4023670,"75,000.00",HMRC GBS Management Fees
NS&I,NS&I,01/06/2023,Project costs - Outsource partner,Programme Delivery,Atos IT Services UK Ltd,4023584,"72,357.00",Customer journey improvements
NS&I,NS&I,29/06/2023,Maintenance and running costs - Outsource partner,Information & Technology,Atos IT Services UK Ltd,4023823,"67,115.00",Delivering IT orchestration improvements May 2023
NS&I,NS&I,28/06/2023,Advertising and production,Marketing Communications,Manning Gottlieb OMD,4023721,"65,667.52",Cost of Marketing Campaigns
NS&I,NS&I,29/06/2023,Maintenance and running costs - Outsource partner,Information & Technology,Atos IT Services UK Ltd,4023820,"60,241.00",Security software licences
NS&I,NS&I,29/06/2023,Maintenance and running costs - Outsource partner,Information & Technology,Atos IT Services UK Ltd,4023744,"58,624.00",Customer portal running costs
NS&I,NS&I,29/06/2023,Maintenance and running costs - Outsource partner,Information & Technology,Atos IT Services UK Ltd,4023822,"58,612.00",Delivering IT orchestration improvements May 2023
NS&I,NS&I,28/06/2023,Unitary fee - Outsource partner,B2B Government Payment Services,Atos IT Services UK Ltd,4023598,"68,811.98",Tax-free childcare service charges - April 2023
NS&I,NS&I,28/06/2023,Unitary fee - Outsource partner,B2B Government Payment Services,Atos IT Services UK Ltd,4023793,"57,343.32",Tax-free childcare service charges - April 2023
NS&I,NS&I,07/06/2023,Professional services - Other,Rainbow,Capgemini UK plc (SIAM Partner),4023647,"53,282.40",Service Integration and Management (SIAM) Partner support
NS&I,NS&I,28/06/2023,Maintenance and running costs - Outsource partner,Information & Technology,Atos IT Services UK Ltd,4023672,"46,017.00",Information systems testing 
NS&I,NS&I,29/06/2023,Project costs - Outsource partner,Programme Delivery,Atos IT Services UK Ltd,4023727,"43,883.00",Service change costs
NS&I,NS&I,14/06/2023,Project costs - Outsource partner,Programme Delivery,Atos IT Services UK Ltd,4023684,"42,098.00",Customer journey improvements
NS&I,NS&I,07/06/2023,Professional services - Other,Rainbow,Bloom Procurement Services Limited,4023605,"36,000.00",Cost of Marketing Campaigns
NS&I,NS&I,29/06/2023,Project costs - Outsource partner,Programme Delivery,Atos IT Services UK Ltd,4023699,"31,739.00",Improving customer communication channels
NS&I,NS&I,28/06/2023,Professional services - Legal,Compliance & Delivery,Government Legal Department,4023750,"30,900.00",Professional fees - Advisory 
NS&I,NS&I,07/06/2023,Professional services - Other,Complaint's Management,Financial Ombudsman Services,4023626,"29,250.00",Case Fee Charges June 2023
NS&I,NS&I,28/06/2023,Demand-linked costs - Outsource partner,Delivery & Monitoring,Atos IT Services UK Ltd,4023760,"29,013.00",Demand link service charge - May 2023
NS&I,NS&I,29/06/2023,Demand-linked costs - Outsource partner,Delivery & Monitoring,Atos IT Services UK Ltd,4023827,"29,013.00",Demand link service charge - April 2023
NS&I,NS&I,28/06/2023,Building services charge,Workplace & Culture,Government Property Agency,4023754,"28,190.49",Quarterly Rent for London Office Q2 2023
NS&I,NS&I,29/06/2023,Project costs - Outsource partner,Programme Delivery,Atos IT Services UK Ltd,4023702,"28,079.00",Cheque processing enhancements
NS&I,NS&I,28/06/2023,Project costs - Outsource partner,Programme Delivery,Atos IT Services UK Ltd,4023795,"27,793.00",Enhancing operational flexibility
NS&I,NS&I,07/06/2023,Maintenance and running costs - Outsource partner,Data & Planning,Atos IT Services UK Ltd,4023608,"26,354.00",Changes to email centre
NS&I,NS&I,07/06/2023,Web hosting,B2B & Operations Assurance,Keysight Technologies UK Limited,4023648,"26,084.16",Independent Website Monitoring�
NS&I,NS&I,01/06/2023,Project costs - Outsource partner,Programme Delivery,Atos IT Services UK Ltd,4023590,"25,696.00",Data maintenance work
NS&I,NS&I,28/06/2023,Unitary fee - Outsource partner,B2B Government Payment Services,Atos IT Services UK Ltd,4023788,"-29,202.55",Help to save service charges - April 2023
NS&I,NS&I,28/06/2023,Unitary fee - Outsource partner,B2B Government Payment Services,Atos IT Services UK Ltd,4023787,"-68,811.98",Tax-free childcare service charges - April 2023
NS&I,NS&I,28/06/2023,Unitary fee - Outsource partner,B2B Government Payment Services,Atos IT Services UK Ltd,4023773,"-112,694.41",Tax-free childcare service charges - April 2023
NS&I,NS&I,28/06/2023,Unitary fee - Outsource partner,B2B Government Payment Services,Atos IT Services UK Ltd,4023774,"-112,694.41",Tax-free childcare service charges - April 2023
NS&I,NS&I,28/06/2023,Unitary fee - Outsource partner,B2B Government Payment Services,Atos IT Services UK Ltd,4023766,"-196,178.02",Court Funds Office Service Charges May 2023
NS&I,NS&I,28/06/2023,Unitary fee - Outsource partner,B2B Government Payment Services,Atos IT Services UK Ltd,4023769,"-327,995.47",30 Hours service charges - May 2023
NS&I,NS&I,28/06/2023,Unitary fee - Outsource partner,B2B Government Payment Services,Atos IT Services UK Ltd,4023803,"-407,324.28",Tax-free childcare service charges - April 2023
NS&I,NS&I,28/06/2023,Unitary fee - Outsource partner,B2B Government Payment Services,Atos IT Services UK Ltd,4023777,"-414,061.48",Help to save service charges - April 2023
NS&I,NS&I,28/06/2023,Unitary fee - Outsource partner,B2B Government Payment Services,Atos IT Services UK Ltd,4023789,"-691,983.05",Help to save service charges - May 2023
NS&I,NS&I,28/06/2023,Unitary fee - Outsource partner,B2B Government Payment Services,Atos IT Services UK Ltd,4023790,"-1,591,414.76",Tax-free childcare service charges - May 2023
